bitfinex/quotes_SOLUSD_20241019
["timestamp","ask_amount","ask_price","bid_price","bid_amount"]
[1729378066358,6.3019,158.69,158.65,5.58707921]
[1729378066655,20.0,158.68,158.62,6.67955078]
[1729378066825,20.0,158.68,158.63,5.58790255]
[1729378067029,20.0,158.68,158.64,5.58790255]
[1729378067247,20.0,158.68,158.65,2.14955489]
[1729378067460,20.0,158.68,158.62,6.6801858]
[1729378067639,20.0,158.68,158.63,5.58769207]
[1729378067841,20.0,158.68,158.64,5.58769207]
[1729378068047,20.0,158.68,158.65,2.14934441]
[1729378068246,6.3019,158.68,158.62,3.4394883]
[1729378068440,6.3019,158.68,158.63,5.58887087]
[1729378068761,26.3041,158.63,158.6,3.44103826]
[1729378068937,6.3041,158.63,158.5,3.44144061]
[1729378069142,6.3043,158.62,158.51,6.00211436]
[1729378069450,6.3043,158.62,158.52,8.83467916]
[1729378069635,6.3043,158.62,158.53,5.59211436]
[1729378069837,6.3043,158.62,158.54,5.59211436]
[1729378070031,20.0,158.66,158.55,5.59211436]
[1729378070236,20.0,158.66,158.49,15.3445]
[1729378070237,26.3031,158.66,158.5,20.0]
[1729378070445,20.1,158.66,158.54,8.07308668]
[1729378070655,6.3031,158.65,158.55,8.82682568]
[1729378070953,6.3031,158.65,158.56,5.58762883]
[1729378071128,6.3031,158.65,158.57,5.58762883]
[1729378071427,6.3036,158.64,158.58,2.14893667]
[1729378071628,6.3036,158.64,158.59,2.14893667]
[1729378071870,20.1,158.66,158.56,3.43869216]
[1729378072030,6.3032,158.65,158.57,5.58672092]
[1729378072232,6.3041,158.63,158.58,2.14802876]
[1729378072534,6.3045,158.62,158.56,3.43869216]
[1729378072732,6.3045,158.62,158.57,2.14717307]
[1729378072933,6.3045,158.62,158.58,2.14717307]
[1729378073132,6.3045,158.62,158.57,2.14717307]
[1729378073333,6.3045,158.62,158.58,2.14717307]
[1729378073534,6.3045,158.62,158.56,2.14717307]
[1729378073761,6.3045,158.62,158.57,2.14717307]
[1729378073956,6.3045,158.62,158.58,2.14717307]
[1729378074135,6.3045,158.62,158.56,2.14717307]
[1729378074455,6.3045,158.62,158.57,2.14717307]
[1729378074656,0.1,158.63,158.55,2.14717307]
[1729378074868,16.5458,158.61,158.56,2.14717307]
[1729378075042,6.3059,158.59,158.55,2.14717307]
[1729378075359,0.1,158.58,158.55,2.14717307]
[1729378075536,0.2,158.57,158.46,3.43869216]
[1729378075743,6.3067,158.56,158.45,15.9575]
[1729378076042,6.3067,158.56,158.46,8.8159638]
[1729378076256,6.3073,158.55,158.47,5.58079781]
[1729378076578,6.3073,158.55,158.48,2.14630947]
[1729378076734,6.308,158.53,158.49,2.14630947]
[1729378077048,20.0,158.53,158.47,2.14630947]
[1729378077355,20.0,158.53,158.4,22.0459]
[1729378077356,26.3082,158.53,158.42,2.14630947]
[1729378077563,6.3083,158.52,158.42,2.14630947]
[1729378077943,6.4083,158.52,158.42,2.14630947]
[1729378078143,6.4083,158.52,158.4,25.48038834]
[1729378078144,0.1,158.52,158.41,5.58079781]
[1729378078343,6.3087,158.51,158.41,22.14630947]
[1729378078650,6.3087,158.51,158.42,2.14630947]
[1729378078852,20.0,158.53,158.42,2.14630947]
[1729378079052,22.9883,158.54,158.43,23.776884]
[1729378079238,22.9883,158.54,158.44,5.58079781]
[1729378079838,22.9883,158.54,158.43,20.0]
[1729378080044,22.9883,158.54,158.44,2.13929505]
[1729378080664,0.1,158.53,158.44,2.13929505]
[1729378080838,20.1,158.53,158.41,8.7871999]
[1729378081042,23.876884,158.52,158.41,5.56255909]
[1729378081259,6.3093,158.5,158.41,5.56255909]
[1729378081438,6.3093,158.5,158.41,2.13929505]
[1729378081859,20.0,158.49,158.41,2.13929505]
[1729378082058,6.3094,158.5,158.4,14.16788733]
[1729378082236,6.3094,158.5,158.41,2.13672928]
[1729378085757,6.3079,158.53,158.41,2.13672928]
[1729378086069,6.3084,158.52,158.41,23.776884]
[1729378086365,6.3084,158.52,158.42,2.13025279]
[1729378086548,6.3084,158.52,158.42,5.53904827]
[1729378087147,6.3084,158.52,158.42,2.13025279]
[1729378087550,6.3084,158.52,158.42,5.53627901]
[1729378087945,6.3089,158.51,158.42,2.13025279]
[1729378088170,6.3089,158.51,158.41,2.13025279]
[1729378088767,6.3094,158.5,158.41,2.13025279]
[1729378089350,0.1,158.52,158.41,2.13025279]
[1729378089658,6.1047,158.47,158.4,8.07948733]
[1729378089848,6.3116,158.44,158.31,22.034]
[1729378090048,6.3116,158.44,158.32,5.34526698]
[1729378090247,0.1,158.43,158.33,1.09756945]
[1729378090465,6.3123,158.42,158.32,5.53729699]
[1729378090790,6.3123,158.42,158.32,2.12957923]
[1729378091242,6.3119,158.44,158.32,2.12957923]
[1729378091652,20.0,158.46,158.33,31.62257969]
[1729378091857,26.311,158.46,158.35,23.776884]
[1729378092161,26.311,158.46,158.36,2.12957923]
[1729378092362,20.0,158.46,158.36,2.12957923]
[1729378092567,6.1047,158.47,158.37,23.776884]
[1729378092860,6.3102,158.48,158.34,21.09732481]
[1729378093074,6.3102,158.48,158.36,20.0]
[1729378093266,6.3107,158.47,158.37,2.12690972]
[1729378093467,15.8798,158.49,158.38,23.776884]
[1729378093845,15.8798,158.49,158.4,23.776884]
[1729378094365,15.8798,158.49,158.39,42.034]
[1729378096549,15.8798,158.49,158.4,2.12427398]
[1729378097369,15.8798,158.49,158.39,42.034]
[1729378098356,15.8798,158.49,158.4,2.12591391]
[1729378098559,6.1047,158.51,158.41,23.776884]
[1729378098765,6.1047,158.51,158.4,23.776884]
[1729378098957,6.1047,158.51,158.41,22.12553153]
[1729378099146,6.1047,158.51,158.41,20.0]
[1729378101068,22.1877,158.53,158.42,2.12753695]
[1729378103682,22.1877,158.53,158.41,23.40337293]
[1729378103683,6.3089,158.51,158.41,20.0]
[1729378103869,6.3089,158.51,158.4,23.776884]
[1729378104070,6.3089,158.51,158.39,22.034]
[1729378104269,6.3089,158.51,158.4,22.12880709]
[1729378104466,6.3089,158.51,158.4,20.0]
[1729378104663,6.4087,158.51,158.4,20.0]
[1729378104870,6.3094,158.5,158.39,22.034]
[1729378105059,0.2,158.51,158.4,2.129062]
[1729378105060,6.3095,158.49,158.4,2.129062]
[1729378110551,6.3095,158.49,158.39,22.034]
[1729378112466,6.3095,158.49,158.4,3.23812611]
[1729378113486,6.3095,158.49,158.4,5.37032008]
[1729378114056,6.3095,158.49,158.4,3.23812611]
[1729378115354,6.3095,158.49,158.4,3.24314391]
[1729378115559,43.776884,158.52,158.4,3.24314391]
[1729378115756,26.3084,158.52,158.4,5.3767788]
[1729378116173,6.3084,158.52,158.41,20.0]
[1729378116571,6.3084,158.52,158.42,3.24604026]
[1729378117089,6.3084,158.52,158.41,3.24604026]
[1729378117960,28.77542983,158.53,158.41,3.24604026]
[1729378118284,28.77542983,158.53,158.42,23.776884]
[1729378118469,28.77542983,158.53,158.43,3.24604026]
[1729378118871,28.77542983,158.53,158.41,23.776884]
[1729378119068,28.77542983,158.53,158.42,20.0]
[1729378119266,6.3088,158.51,158.43,3.25041771]
[1729378119481,22.56742983,158.53,158.43,3.25041771]
[1729378119683,6.31,158.48,158.4,25.38736471]
[1729378119886,20.1,158.52,158.41,3.25041771]
[1729378119887,6.3095,158.49,158.41,3.25041771]
[1729378120201,20.1,158.52,158.42,3.25041771]
[1729378120202,6.3092,158.5,158.42,3.25041771]
[1729378120367,6.3092,158.5,158.43,3.25041771]
[1729378120567,6.3092,158.5,158.44,3.25041771]
[1729378120763,6.3092,158.5,158.42,3.25041771]
[1729378120981,6.3092,158.5,158.43,3.25041771]
[1729378121176,6.3092,158.5,158.44,3.25041771]
[1729378121377,6.3092,158.5,158.45,3.25041771]
[1729378121693,6.3092,158.5,158.42,3.25041771]
[1729378121865,6.3092,158.5,158.43,3.25041771]
[1729378122065,6.3092,158.5,158.44,3.25041771]
[1729378122267,6.3092,158.5,158.45,3.25041771]
[1729378122597,6.3092,158.5,158.42,3.25041771]
[1729378123176,6.3092,158.5,158.41,2.14145099]
[1729378123372,6.3092,158.5,158.43,3.26248505]
[1729378123688,6.3092,158.5,158.44,3.26248505]
[1729378123893,6.3092,158.5,158.45,3.26248505]
[1729378124197,6.3092,158.5,158.42,3.26248505]
[1729378124393,26.67211138,158.52,158.43,3.26248505]
[1729378124697,6.3087,158.51,158.44,3.26248505]
[1729378124872,6.3087,158.51,158.42,3.26248505]
[1729378125067,6.3087,158.51,158.43,3.26248505]
[1729378125269,6.3087,158.51,158.44,3.26248505]
[1729378125478,6.3087,158.51,158.42,3.26248505]
[1729378125672,6.3087,158.51,158.43,3.26248505]
[1729378125975,6.3087,158.51,158.44,3.26248505]
[1729378126207,6.57211138,158.52,158.45,3.26248505]
[1729378126494,15.8798,158.53,158.46,3.26248505]
[1729378126677,15.8798,158.53,158.44,3.26248505]
[1729378126881,15.8798,158.53,158.45,3.26248505]
[1729378127088,15.8798,158.53,158.46,3.26248505]
[1729378127397,15.8798,158.53,158.47,3.26248505]
[1729378127592,15.8798,158.53,158.45,3.26248505]
[1729378127895,15.8798,158.53,158.46,3.26248505]
[1729378128099,15.8798,158.53,158.45,3.26248505]
[1729378128291,15.8798,158.53,158.46,3.26248505]
[1729378128600,15.9798,158.53,158.44,3.26248505]
[1729378128775,6.3087,158.51,158.44,5.40393604]
[1729378128971,6.3087,158.51,158.42,5.40393604]
[1729378129285,6.3087,158.51,158.43,3.26248505]
[1729378129591,6.3087,158.51,158.44,3.26248505]
[1729378129801,6.3087,158.51,158.42,5.40393604]
[1729378130009,20.0,158.52,158.43,3.26248505]
[1729378130186,6.3093,158.5,158.43,3.26248505]
[1729378130390,20.1,158.52,158.42,5.40574241]
[1729378130708,6.3098,158.49,158.43,5.40574241]
[1729378131003,6.3098,158.49,158.41,5.40574241]
[1729378131203,6.3099,158.48,158.42,5.40574241]
[1729378131402,6.2074,158.48,158.43,5.40574241]
[1729378131578,6.2074,158.48,158.37,3.43535782]
[1729378131579,22.5483,158.46,158.37,3.43535782]
[1729378131784,22.5483,158.46,158.38,8.85871327]
[1729378131994,22.5483,158.46,158.39,5.42335545]
[1729378132180,16.2376,158.46,158.4,2.15651643]
[1729378132393,16.2376,158.46,158.38,6.70219684]
[1729378132605,16.2376,158.46,158.39,8.86104564]
[1729378132791,16.2376,158.46,158.35,21.5349]
[1729378132792,16.2376,158.46,158.4,5.42568782]
[1729378132993,16.2376,158.46,158.41,2.1588488]
[1729378133194,16.2376,158.46,158.38,8.86104564]
[1729378133390,16.2376,158.46,158.39,8.86104564]
[1729378133606,6.2074,158.48,158.4,8.86104564]
[1729378133913,6.2074,158.48,158.41,8.86104564]
[1729378134212,6.2074,158.48,158.42,2.1588488]
[1729378134411,6.2074,158.48,158.37,20.0]
[1729378134616,6.2074,158.48,158.43,2.16242205]
[1729378134789,6.2074,158.48,158.44,2.16242205]
[1729378134983,6.2074,158.48,158.45,2.16242205]
[1729378134984,20.0,158.48,158.45,2.16242205]
[1729378135196,6.3099,158.49,158.4,6.7260959]
[1729378135400,6.3099,158.49,158.41,8.88837133]
[1729378135603,6.3099,158.49,158.42,8.88837133]
[1729378135812,6.3099,158.49,158.43,5.62184929]
[1729378135988,6.3099,158.49,158.44,2.16227543]
[1729378136189,6.3099,158.49,158.45,2.16227543]
[1729378136491,6.3099,158.49,158.4,6.7340169]
[1729378136697,6.3099,158.49,158.41,8.90048661]
[1729378136987,6.3099,158.49,158.42,8.90048661]
[1729378137207,6.3099,158.49,158.43,5.63143382]
[1729378137403,6.3099,158.49,158.44,5.63143382]
[1729378137588,16.2376,158.5,158.45,2.16646971]
[1729378137910,22.5468,158.5,158.4,3.27078002]
[1729378138115,22.5468,158.5,158.41,8.9028118]
[1729378138410,22.5468,158.5,158.42,8.9028118]
[1729378138591,22.5468,158.5,158.43,8.9028118]
[1729378138788,22.5468,158.5,158.44,5.63203178]
[1729378138992,22.5468,158.5,158.45,5.63203178]
[1729378139217,22.5468,158.5,158.46,2.16601329]
[1729378139394,22.5468,158.5,158.4,6.73614733]
[1729378139594,22.5468,158.5,158.41,8.90222135]
[1729378139794,22.5468,158.5,158.42,8.90222135]
[1729378139988,22.5468,158.5,158.43,8.90222135]
[1729378140193,22.5468,158.5,158.44,5.63181987]
[1729378140395,6.3095,158.49,158.45,5.63181987]
[1729378140609,6.3095,158.49,158.46,2.16607402]
[1729378140814,6.3095,158.49,158.42,6.73672147]
[1729378141003,6.3095,158.49,158.43,5.63342769]
[1729378141318,6.3095,158.49,158.44,5.63342769]
[1729378141494,6.3095,158.49,158.45,2.16655014]
[1729378141698,6.3095,158.49,158.39,6.73831134]
[1729378142013,6.3095,158.49,158.4,8.90480962]
[1729378142214,6.3095,158.49,158.41,8.90480962]
[1729378142412,6.3095,158.49,158.42,8.90480962]
[1729378142716,6.3095,158.49,158.43,8.90480962]
[1729378142918,16.2376,158.5,158.44,5.63338778]
[1729378143106,16.2376,158.5,158.45,5.63338778]
[1729378143298,16.2376,158.5,158.46,5.63338778]
[1729378143504,16.2376,158.5,158.47,2.16649828]
[1729378143701,16.2376,158.5,158.4,6.73336685]
[1729378144015,16.2376,158.5,158.41,8.89821809]
[1729378144216,16.2376,158.5,158.42,8.89821809]
[1729378144418,16.2376,158.5,158.36,20.0]
[1729378144419,22.547,158.5,158.43,5.62918174]
[1729378144710,22.547,158.5,158.43,3.26843928]
[1729378144924,22.547,158.5,158.44,5.62938748]
[1729378145099,22.547,158.5,158.45,5.62938748]
[1729378145289,22.547,158.5,158.46,5.62938748]
[1729378145495,22.547,158.5,158.47,2.16499632]
[1729378145717,22.547,158.5,158.41,6.73396969]
[1729378145921,22.547,158.5,158.42,8.89961831]
[1729378146220,22.547,158.5,158.43,8.89961831]
[1729378146444,22.547,158.5,158.38,23.776884]
[1729378146445,26.2074,158.52,158.44,8.89961831]
[1729378146600,26.2074,158.52,158.42,15.0666]
[1729378146601,6.2074,158.52,158.45,8.89961831]
[1729378146797,6.2074,158.52,158.46,8.89917482]
[1729378147117,12.5158,158.52,158.47,5.63106213]
[1729378147413,12.5158,158.52,158.48,2.16564862]
[1729378147721,12.5158,158.52,158.49,2.16564862]
[1729378147921,12.5158,158.52,158.45,6.73427249]
[1729378148127,12.5158,158.52,158.42,15.0666]
[1729378148128,12.5158,158.52,158.46,8.90009765]
[1729378148311,12.5158,158.52,158.47,5.6314548]
[1729378148618,6.2074,158.52,158.48,5.6314548]
[1729378148818,6.308,158.53,158.49,2.16582516]
[1729378149119,6.308,158.53,158.45,3.26811524]
[1729378149419,6.308,158.53,158.46,8.89680766]
[1729378149611,6.308,158.53,158.47,5.62869242]
[1729378149815,6.308,158.53,158.48,5.62869242]
[1729378150004,20.0,158.53,158.49,2.16472903]
[1729378150198,20.0,158.53,158.5,2.16472903]
[1729378150401,20.0,158.53,158.42,15.0666]
[1729378150402,20.0,158.53,158.46,6.73072148]
[1729378150609,20.0,158.53,158.47,8.89493836]
[1729378150795,20.0,158.53,158.48,5.62734756]
[1729378150996,20.0,158.53,158.49,5.62734756]
[1729378151216,20.0,158.53,158.5,2.16421688]
[1729378151420,20.0,158.53,158.45,3.26662207]
[1729378151714,20.0,158.53,158.42,15.0666]
[1729378151715,20.0,158.53,158.46,8.89649547]
[1729378151923,20.0,158.53,158.47,8.89649547]
[1729378152125,20.0,158.53,158.48,5.62898665]
[1729378152292,20.0,158.53,158.49,5.62898665]
[1729378152628,20.0,158.53,158.5,2.16484219]
[1729378152824,20.0,158.53,158.44,3.2663345]
[1729378152997,20.0,158.53,158.45,8.89573702]
[1729378153329,20.0,158.53,158.46,8.89573702]
[1729378153517,20.0,158.53,158.47,8.89573702]
[1729378153723,20.0,158.53,158.48,5.62940252]
[1729378153906,20.0,158.53,158.42,15.0666]
[1729378153907,20.0,158.53,158.49,5.62940252]
[1729378154107,20.0,158.53,158.5,5.62971241]
[1729378154307,20.0,158.53,158.51,2.16500213]
[1729378154520,20.0,158.53,158.46,6.73070985]
[1729378154821,20.0,158.53,158.47,8.89576835]
[1729378154996,20.0,158.53,158.48,5.62953836]
[1729378155199,20.0,158.53,158.42,15.0666]
[1729378155200,26.3079,158.53,158.49,5.62953836]
[1729378155418,26.3079,158.53,158.5,2.1650585]
[1729378155614,26.3079,158.53,158.51,2.1650585]
[1729378155813,26.3079,158.53,158.46,6.73033793]
[1729378156013,26.3079,158.53,158.47,8.89510027]
[1729378156205,26.3079,158.53,158.48,5.62939045]
[1729378156408,26.3079,158.53,158.49,5.62939045]
[1729378156606,26.3079,158.53,158.5,2.16504988]
[1729378156923,26.3079,158.53,158.45,3.26570982]
[1729378156924,26.3079,158.53,158.46,3.46460684]
[1729378157251,26.3079,158.53,158.47,5.62974091]
[1729378157526,26.3079,158.53,158.48,5.62974091]
[1729378157718,26.3079,158.53,158.49,5.62974091]
[1729378157914,26.3079,158.53,158.5,2.16513407]
[1729378158108,26.3079,158.53,158.43,6.72792477]
[1729378158310,26.3079,158.53,158.44,8.89223555]
[1729378158496,26.3079,158.53,158.45,8.89223555]
[1729378158701,26.3079,158.53,158.46,8.89223555]
[1729378158927,26.3079,158.53,158.47,5.62761472]
[1729378159126,26.3079,158.53,158.48,5.62761472]
[1729378159326,26.3079,158.53,158.49,2.16431078]
[1729378159510,26.3079,158.53,158.5,2.16431078]
[1729378159710,26.3079,158.53,158.46,3.4630385]
[1729378160036,26.3079,158.53,158.47,5.62706782]
[1729378160238,26.3079,158.53,158.48,5.62706782]
[1729378160531,26.3079,158.53,158.49,2.16402932]
[1729378160709,26.3079,158.53,158.5,2.16402932]
[1729378160909,26.3079,158.53,158.44,6.72714837]
[1729378161123,26.3079,158.53,158.45,8.89106682]
[1729378161326,26.3079,158.53,158.46,8.89106682]
[1729378161627,26.3079,158.53,158.42,15.0666]
[1729378161628,26.3079,158.53,158.47,5.62665287]
[1729378161933,26.3079,158.53,158.48,5.62665287]
[1729378162118,26.3079,158.53,158.49,2.16391845]
[1729378162434,26.3079,158.53,158.5,2.16391845]
[1729378162642,26.3079,158.53,158.46,3.46266094]
[1729378162808,26.3079,158.53,158.47,5.62636598]
[1729378163011,26.3079,158.53,158.48,5.62636598]
[1729378163230,26.3079,158.53,158.49,2.16370504]
[1729378163531,26.3079,158.53,158.5,2.16370504]
[1729378163749,20.0,158.53,158.44,6.72445675]
[1729378163936,20.0,158.53,158.45,8.88733657]
[1729378164132,20.0,158.53,158.46,8.88733657]
[1729378164330,20.0,158.53,158.47,5.62355509]
[1729378164515,20.0,158.53,158.48,5.62355509]
[1729378164716,20.0,158.53,158.49,5.62355509]
[1729378165010,22.5454,158.54,158.5,2.16275326]
[1729378165227,6.3078,158.54,158.51,2.16245744]
[1729378165428,6.3078,158.54,158.44,6.72163665]
[1729378165736,6.3078,158.54,158.45,8.88396571]
[1729378165936,6.3078,158.54,158.46,8.88396571]
[1729378166230,6.3078,158.54,158.47,8.88396571]
[1729378166429,6.3078,158.54,158.48,5.62253783]
[1729378166624,6.3083,158.52,158.49,5.62253783]
[1729378166816,6.3083,158.52,158.5,2.16232906]
[1729378167143,6.3083,158.52,158.45,6.72136143]
[1729378167309,6.3083,158.52,158.46,8.88379289]
[1729378167513,6.3083,158.52,158.47,5.62281284]
[1729378167708,6.3083,158.52,158.48,5.62281284]
[1729378167914,6.3083,158.52,158.49,5.62281284]
[1729378168114,6.3083,158.52,158.5,2.16243146]
[1729378168348,6.3083,158.52,158.46,3.46004822]
[1729378168533,6.3083,158.52,158.42,15.0666]
[1729378168534,6.3083,158.52,158.47,5.62232176]
[1729378168738,6.3083,158.52,158.48,5.62232176]
[1729378169045,6.3083,158.52,158.49,5.62232176]
[1729378169342,6.3083,158.52,158.5,2.16227354]
[1729378169516,6.3083,158.52,158.44,6.72131649]
[1729378169842,6.3083,158.52,158.45,8.88364528]
[1729378170137,6.3083,158.52,158.46,8.88364528]
[1729378170330,6.3083,158.52,158.47,5.62254356]
[1729378170529,6.3083,158.52,158.43,20.0]
[1729378170530,6.3083,158.52,158.48,5.62254356]
[1729378170731,6.3083,158.52,158.49,5.62254356]
[1729378170929,6.3083,158.52,158.5,2.16232879]
[1729378171258,6.3083,158.52,158.47,3.45996018]
[1729378171417,6.3083,158.52,158.48,5.62214417]
[1729378171616,6.3083,158.52,158.49,5.62214417]
[1729378171844,6.3083,158.52,158.5,2.16218399]
[1729378172136,6.3083,158.52,158.46,3.46003215]
[1729378172323,6.3083,158.52,158.47,5.62232429]
[1729378172644,6.3083,158.52,158.48,5.62232429]
[1729378172820,6.3083,158.52,158.49,2.16229214]
[1729378173015,6.3083,158.52,158.5,2.16229214]
[1729378173227,6.3083,158.52,158.45,3.46008122]
[1729378173540,6.3083,158.52,158.46,5.6223496]
[1729378173837,6.3083,158.52,158.47,5.6223496]
[1729378174019,6.3083,158.52,158.48,5.6223496]
[1729378174217,6.3083,158.52,158.49,2.16226838]
[1729378174419,43.776884,158.55,158.5,2.16226838]
[1729378174627,6.308,158.53,158.45,3.46008815]
[1729378174836,6.308,158.53,158.46,5.62230002]
[1729378175050,6.308,158.53,158.47,5.62230002]
[1729378175223,6.308,158.53,158.48,5.62230002]
[1729378175420,6.308,158.53,158.49,5.62230002]
[1729378175624,6.308,158.53,158.5,2.16221187]
[1729378175841,6.308,158.53,158.46,3.45992067]
[1729378176021,6.308,158.53,158.47,5.62212809]
[1729378176226,30.084284,158.55,158.48,5.62212809]
[1729378176433,20.0,158.55,158.49,5.62212809]
[1729378176650,26.3074,158.55,158.5,5.6219263]
[1729378176867,26.3074,158.55,158.51,2.16220742]
[1729378177031,26.3074,158.55,158.43,30.49705483]
[1729378177227,26.3074,158.55,158.44,8.88231365]
[1729378177453,26.3074,158.55,158.45,8.88231365]
[1729378177747,26.3074,158.55,158.46,8.88231365]
[1729378177948,26.3074,158.55,158.47,8.88231365]
[1729378178249,26.3074,158.55,158.48,5.62205402]
[1729378178441,26.3074,158.55,158.49,5.62205402]
[1729378178648,26.3074,158.55,158.5,2.16214282]
[1729378178850,26.3074,158.55,158.51,2.16214282]
[1729378179039,26.3074,158.55,158.47,6.72060418]
[1729378179354,26.3074,158.55,158.48,5.62161854]
[1729378179527,26.3074,158.55,158.49,5.62161854]
[1729378179854,26.3074,158.55,158.5,2.16193351]
[1729378180033,26.3074,158.55,158.51,2.16193351]
[1729378180228,26.3074,158.55,158.47,6.72053813]
[1729378180552,26.3074,158.55,158.48,5.61999773]
[1729378180758,26.3074,158.55,158.49,5.61999773]
[1729378180929,26.3074,158.55,158.5,2.16100995]
[1729378181129,26.3074,158.55,158.51,2.16100995]
[1729378181330,26.3074,158.55,158.47,6.717586]
[1729378181639,26.3074,158.55,158.48,8.87773823]
[1729378181840,26.3074,158.55,158.43,23.776884]
[1729378181841,26.3074,158.55,158.49,5.61723563]
[1729378182148,26.3074,158.55,158.5,5.61723563]
[1729378182343,26.3074,158.55,158.51,2.16015223]
[1729378182657,26.3074,158.55,158.45,6.71713925]
[1729378182951,26.3074,158.55,158.46,8.87722197]
[1729378183139,26.3074,158.55,158.47,8.87722197]
[1729378183344,26.3074,158.55,158.48,8.87722197]
[1729378183531,6.3076,158.54,158.49,5.61661795]
[1729378183735,6.3076,158.54,158.43,23.776884]
[1729378183736,6.3076,158.54,158.5,5.61661795]
[1729378183938,6.3076,158.54,158.51,2.16008272]
[1729378184147,6.3076,158.54,158.46,6.71841745]
[1729378184450,6.3076,158.54,158.47,8.87852759]
[1729378184641,6.3076,158.54,158.48,8.87852759]
[1729378184840,6.3076,158.54,158.49,5.61662908]
[1729378185052,6.3076,158.54,158.5,2.16011014]
[1729378185345,6.3076,158.54,158.45,6.71825832]
[1729378185540,6.3076,158.54,158.46,8.87834027]
[1729378185748,6.3076,158.54,158.47,8.87834027]
[1729378185929,6.3076,158.54,158.48,5.61661272]
[1729378186134,6.3076,158.54,158.49,5.61661272]
[1729378186337,6.3076,158.54,158.5,2.1600834]
[1729378186538,6.3076,158.54,158.44,6.7188275]
[1729378186739,6.3076,158.54,158.45,8.87874552]
[1729378186947,6.3076,158.54,158.46,8.87874552]
[1729378187156,6.3076,158.54,158.47,8.87874552]
[1729378187349,6.3076,158.54,158.48,8.87874552]
[1729378187558,6.3076,158.54,158.49,5.61627629]
[1729378187741,6.3076,158.54,158.5,2.15991802]
[1729378188053,6.3076,158.54,158.51,2.15991802]
[1729378188241,6.3076,158.54,158.46,6.72130993]
[1729378188439,6.3076,158.54,158.47,8.88118898]
[1729378188648,6.3076,158.54,158.48,8.88118898]
[1729378188838,6.3076,158.54,158.49,5.61695234]
[1729378189038,6.3076,158.54,158.5,2.15987905]
[1729378189238,6.3076,158.54,158.45,6.72082717]
[1729378189441,6.3076,158.54,158.46,8.88086491]
[1729378189648,6.3076,158.54,158.47,8.88164218]
[1729378189838,6.3076,158.54,158.48,8.88164218]
[1729378190046,6.3076,158.54,158.49,5.61652184]
[1729378190342,6.3076,158.54,158.5,2.16004844]
[1729378190557,6.3076,158.54,158.44,6.7218522]
[1729378190558,6.3076,158.54,158.43,23.776884]
[1729378190868,6.3076,158.54,158.45,3.2659097]
[1729378191160,6.3076,158.54,158.46,8.88283084]
[1729378191364,6.3076,158.54,158.47,8.88283084]
[1729378191543,6.3076,158.54,158.48,8.88283084]
[1729378191735,6.3076,158.54,158.49,2.16020551]
[1729378191940,6.3076,158.54,158.5,2.16020551]
[1729378192142,6.3076,158.54,158.45,6.72324512]
[1729378192341,6.3076,158.54,158.46,8.88394664]
[1729378192540,6.3076,158.54,158.43,23.776884]
[1729378192541,6.3076,158.54,158.47,8.88394664]
[1729378192741,6.3076,158.54,158.48,8.88394664]
[1729378192957,6.3076,158.54,158.49,8.88394664]
[1729378193159,6.3079,158.53,158.5,2.16070152]
[1729378193354,6.3079,158.53,158.43,3.45849888]
[1729378193543,6.3079,158.53,158.44,2.16132175]
[1729378193747,6.3079,158.53,158.45,8.88753639]
[1729378193963,6.3079,158.53,158.46,8.88753639]
[1729378194152,6.3079,158.53,158.47,8.88753639]
[1729378194352,6.3079,158.53,158.48,8.88753639]
[1729378194651,6.3079,158.53,158.49,8.88753639]
[1729378194860,6.3079,158.53,158.5,2.16132175]
[1729378195056,6.3079,158.53,158.51,2.16132175]
[1729378195258,6.3079,158.53,158.44,6.72789365]
[1729378195452,6.3079,158.53,158.45,8.89012777]
[1729378195662,6.3079,158.53,158.46,8.89012777]
[1729378195850,6.3079,158.53,158.47,8.89012777]
[1729378196053,6.3079,158.53,158.48,8.89012777]
[1729378196249,6.3079,158.53,158.49,8.89012777]
[1729378196460,6.3079,158.53,158.5,2.16223412]